bitfinex-derivatives/quotes_SOLF0:USTF0_20260204
["timestamp","ask_amount","ask_price","bid_price","bid_amount"]
[1770223241959,24.44803644,91.262,91.166,16.63865378]
[1770223242259,24.44803644,91.262,91.154,153.8169]
[1770223242260,24.44803644,91.297,91.184,16.63865378]
[1770223242963,24.44803644,91.264,91.198,9.8834]
[1770223243363,24.44803644,91.264,91.162,16.35601927]
[1770223244066,21.07395421,91.31,91.168,15.91955593]
[1770223244067,24.44803644,91.262,91.168,15.91955593]
[1770223244267,24.44803644,91.328,91.179,15.91955593]
[1770223244562,24.44803644,91.287,91.179,15.91955593]
[1770223245069,24.44803644,91.336,91.243,9.8786]
[1770223245872,24.44803644,91.315,91.243,9.8786]
[1770223246067,24.44803644,91.315,91.214,15.54559334]
[1770223246566,24.44803644,91.31,91.249,9.8779]
[1770223247165,24.44803644,91.31,91.267,9.8759]
[1770223247469,24.44803644,91.31,91.21,7.72433423]
[1770223247470,6.17853644,91.31,91.224,24.41254827]
[1770223248062,6.17853644,91.31,91.249,9.8779]
[1770223248269,6.17853644,91.31,91.224,24.41254827]
[1770223249367,24.44803644,91.308,91.245,9.8783]
[1770223249566,24.44803644,91.308,91.224,24.41254827]
[1770223250474,24.44803644,91.305,91.2,24.41254827]
[1770223251377,24.44803644,91.302,91.2,24.41254827]
[1770223251875,7.72433423,91.33,91.2,24.41254827]
[1770223251876,24.44803644,91.284,91.2,24.41254827]
[1770223252072,24.44803644,91.284,91.176,24.41254827]
[1770223252576,24.44803644,91.254,91.176,24.41254827]
[1770223253177,24.44803644,91.277,91.2,24.41254827]
[1770223253578,24.44803644,91.277,91.177,24.41254827]
[1770223253774,28.81057447,91.249,91.177,24.41254827]
[1770223253972,18.93257447,91.249,91.177,24.41254827]
[1770223254575,18.93257447,91.249,91.178,9.8856]
[1770223255181,18.93257447,91.249,91.177,24.41254827]
[1770223256575,9.8784,91.246,91.177,24.41254827]
[1770223256975,9.8784,91.246,91.15,7.72433423]
[1770223256976,9.8805,91.227,91.155,18.67601178]
[1770223257480,18.93257447,91.226,91.129,18.67601178]
[1770223257671,18.93257447,91.224,91.129,18.67601178]
[1770223258178,18.93257447,91.201,91.107,19.88911698]
[1770223258578,9.8836,91.198,91.11,19.88911698]
[1770223259078,20.2147304,91.196,91.087,19.88911698]
[1770223259686,20.2147304,91.189,91.087,19.88911698]
[1770223260275,20.2147304,91.173,91.095,9.8946]
[1770223260486,20.2147304,91.173,91.087,19.88911698]
[1770223260672,20.2147304,91.173,91.065,194.32]
[1770223260673,20.2147304,91.158,91.073,9.8969]
[1770223260872,20.2147304,91.158,91.073,19.88911698]
[1770223261274,13.05112547,91.228,91.033,154.022]
[1770223261275,7.7750557,91.204,91.101,19.88911698]
[1770223261475,20.2147304,91.214,91.101,19.88911698]
[1770223261680,20.2147304,91.214,91.111,19.88911698]
[1770223261983,20.2147304,91.237,91.147,19.88911698]
[1770223262279,9.8815,91.217,91.147,19.88911698]
[1770223262480,20.2147304,91.216,91.147,19.88911698]
[1770223262884,20.2147304,91.259,91.147,19.88911698]
[1770223263078,9.879,91.24,91.167,9.8868]
[1770223263274,20.2147304,91.239,91.147,19.88911698]
[1770223263475,20.2147304,91.239,91.06,26.57604658]
[1770223263476,6.88201967,91.23,91.111,19.88911698]
[1770223263679,20.2147304,91.194,91.123,9.8916]
[1770223263880,20.2147304,91.194,91.111,19.88911698]
[1770223264082,20.2147304,91.217,91.111,19.88911698]
[1770223264387,19.7474,91.289,91.146,19.88911698]
[1770223264388,20.2147304,91.249,91.146,19.88911698]
[1770223264686,20.2147304,91.229,91.123,19.88911698]
[1770223264884,6.88201967,91.23,91.135,9.8903]
[1770223264885,9.8837,91.196,91.135,9.8903]
[1770223265080,9.8837,91.196,91.123,19.88911698]
[1770223265081,30.0984304,91.196,91.123,19.88911698]
[1770223265381,20.2147304,91.195,91.1,19.88911698]
[1770223266179,20.2147304,91.195,91.102,19.88911698]
[1770223267182,9.8864,91.172,91.109,9.8931]
[1770223267379,19.7633,91.216,91.102,19.88911698]
[1770223267585,21.04302549,91.316,91.136,153.8475]
[1770223267782,21.04302549,91.316,91.21,6.88201967]
[1770223267982,21.04302549,91.316,91.211,196.78]
[1770223268186,80.35046413,91.34,91.22,6.88201967]
[1770223268584,80.35740109,91.364,91.24,6.88201967]
[1770223268786,80.35740109,91.397,91.273,9.8753]
[1770223269082,80.35740109,91.397,91.287,153.5927]
[1770223269282,80.35740109,91.397,91.28,6.88201967]
[1770223269283,80.35740109,91.397,91.318,9.8704]
[1770223269483,80.35740109,91.397,91.274,197.94]
[1770223269886,80.35740109,91.379,91.274,197.94]
[1770223270087,80.35740109,91.379,91.242,198.3]
[1770223270486,80.35740109,91.376,91.242,198.3]
[1770223271589,80.35740109,91.374,91.242,198.3]
[1770223271985,80.35740109,91.374,91.262,9.8765]
[1770223272291,80.35740109,91.374,91.242,198.3]
[1770223272685,80.35740109,91.372,91.244,9.8784]
[1770223273082,80.35740109,91.372,91.242,198.3]
[1770223273282,80.35740109,91.37,91.246,9.8783]
[1770223273482,153.4895,91.35,91.145,153.833]
[1770223273687,80.35740109,91.322,91.204,9.8828]
[1770223274282,80.35740109,91.318,91.185,9.8848]
[1770223275288,18.67691576,91.33,91.11,18.67691576]
[1770223275289,80.35740109,91.28,91.11,18.67691576]
[1770223275491,80.35740109,91.28,91.096,153.9145]
[1770223275492,80.35740109,91.264,91.096,198.36]
[1770223275690,80.35740109,91.243,91.096,198.36]
[1770223275995,80.35740109,91.243,91.12,9.8919]
[1770223276391,80.35740109,91.231,91.12,9.8919]
[1770223277786,80.35740109,91.221,91.12,9.8919]
[1770223278300,9.8813,91.219,91.12,9.8919]
[1770223278497,80.35740109,91.218,91.106,9.8934]
[1770223278900,80.35740109,91.203,91.096,198.36]
[1770223279398,90.24240109,91.184,91.096,198.36]
[1770223279802,80.35740109,91.184,91.096,198.36]
[1770223280001,80.35740109,91.184,91.097,9.8944]
[1770223280401,80.35740109,91.184,91.096,198.36]
[1770223280702,80.35740109,91.18,91.096,198.36]
[1770223280906,80.35740109,91.18,91.062,198.12]
[1770223281504,80.35740109,91.18,91.063,153.9717]
[1770223281693,80.35740109,91.18,91.064,153.9689]
[1770223282401,80.35740109,91.239,91.1,18.67691576]
[1770223282901,80.35740109,91.239,91.07,20.17264384]
[1770223282902,80.35740109,91.222,91.07,18.67691576]
[1770223283399,153.6568,91.25,91.07,18.67691576]
[1770223283400,80.35740109,91.199,91.099,9.8942]
[1770223283601,80.35740109,91.199,91.04,18.67691576]
[1770223283794,153.6176,91.274,91.04,18.67691576]
[1770223284000,80.37816764,91.22,91.071,153.9575]
[1770223284203,80.37816764,91.22,91.07,18.67691576]
[1770223284407,9.8857,91.178,91.102,9.8939]
[1770223284599,9.8857,91.178,91.051,153.9918]
[1770223284799,80.37816764,91.178,91.03,18.67691576]
[1770223285003,80.37816764,91.178,91.034,154.0197]
[1770223285504,9.8876,91.161,91.087,9.8955]
[1770223285702,80.37816764,91.178,91.03,18.67691576]
[1770223286400,80.37816764,91.173,91.085,9.8957]
[1770223287203,9.8881,91.156,91.066,9.8978]
[1770223287501,80.37816764,91.155,91.049,153.9954]
[1770223287806,80.37816764,91.191,91.105,9.8936]
[1770223287998,80.37816764,91.191,91.102,0.06925523]
[1770223288401,154.84,91.225,91.08,10.10260895]
[1770223288402,80.37816764,91.178,91.08,10.10260895]
[1770223288599,80.37816764,91.178,91.076,10.10260895]
[1770223288801,80.37816764,91.178,91.075,10.10260895]
[1770223288999,80.37816764,91.172,91.081,9.8961]
[1770223290105,80.37816764,91.166,91.081,9.8961]
[1770223290299,80.37816764,91.166,91.069,9.8974]
[1770223290502,80.37816764,91.159,91.069,9.8974]
[1770223290908,80.37816764,91.151,91.08,9.8963]
[1770223291309,80.37816764,91.151,91.064,10.10260895]
[1770223291505,80.37816764,91.151,91.054,199.28]
[1770223291506,80.37816764,91.186,91.07,6.89135393]
[1770223291709,80.37816764,91.186,91.058,153.9789]
[1770223291710,80.37816764,91.186,91.09,6.89135393]
[1770223292008,80.37816764,91.181,91.102,9.8938]
[1770223292706,80.37816764,91.176,91.102,9.8938]
[1770223293505,80.37816764,91.176,91.112,9.8927]
[1770223294107,80.37816764,91.176,91.071,10.10260895]
[1770223294309,80.37816764,91.176,91.077,10.10260895]
[1770223294612,80.37816764,91.176,91.057,153.9813]
[1770223294613,80.37816764,91.176,91.059,10.10260895]
[1770223294815,80.37816764,91.164,91.095,9.8946]
[1770223295002,80.37816764,91.164,91.05,6.89135393]
[1770223295204,80.37816764,91.164,91.111,9.8929]
[1770223295610,6.89135393,91.21,91.09,6.89135393]
[1770223295809,9.8831,91.202,91.131,9.8907]
[1770223296005,157.72922931,91.226,91.09,6.89135393]
[1770223296006,1.90922931,91.226,91.09,6.89135393]
[1770223296206,6.89135393,91.26,91.13,6.89135393]
[1770223296507,6.89135393,91.24,91.11,10.10260895]
[1770223296717,6.89135393,91.22,91.093,19.7897]
[1770223297308,9.8825,91.207,91.14,9.8897]
[1770223297515,80.37816764,91.219,91.099,10.10260895]
[1770223297814,80.37816764,91.217,91.143,9.8894]
[1770223298411,80.37816764,91.217,91.101,10.10260895]
[1770223298603,80.37816764,91.217,91.102,10.10260895]
[1770223298808,80.37816764,91.217,91.104,10.10260895]
[1770223299013,80.37816764,91.217,91.137,9.89]
[1770223299206,80.37816764,91.217,91.1,10.10260895]
[1770223299607,80.37816764,91.215,91.135,9.8903]
[1770223300213,80.37816764,91.215,91.11,6.89135393]
[1770223300410,80.37816764,91.215,91.111,10.10260895]
[1770223300714,80.37816764,91.215,91.119,10.10260895]
[1770223300910,80.37816764,91.215,91.12,10.10260895]
[1770223301110,80.37816764,91.215,91.096,10.10260895]
[1770223301314,80.37816764,91.215,91.093,10.10260895]
[1770223301515,80.37816764,91.215,91.08,6.87886677]
[1770223302305,6.87886677,91.22,91.08,6.87886677]
[1770223302306,80.37816764,91.193,91.08,6.87886677]
[1770223302508,80.37816764,91.193,91.064,19.7961]
[1770223302710,80.37816764,91.193,91.077,199.16]
[1770223303012,80.37816764,91.193,91.064,19.7961]
[1770223303318,19.7587,91.237,91.098,9.8942]
[1770223303319,80.37816764,91.167,91.098,9.8942]
[1770223303718,80.37816764,91.167,91.036,19.802]
[1770223303920,80.37816764,91.167,91.037,154.0147]
[1770223304221,80.37816764,91.164,91.085,9.8957]
[1770223304421,80.37816764,91.164,91.035,154.0181]
[1770223304809,80.37816764,91.159,91.097,9.8944]
[1770223305815,80.37816764,91.159,91.06,153.976]
[1770223306020,80.37816764,91.159,91.052,10.10260895]
[1770223306218,80.37816764,91.159,91.037,13.47014527]
[1770223306219,80.37816764,91.211,91.09,6.87886677]
[1770223306423,80.37816764,91.209,91.091,199.0]
[1770223306727,194.98886677,91.26,91.091,199.0]
[1770223306728,80.37816764,91.189,91.091,199.0]
[1770223307522,80.37816764,91.182,91.114,9.8925]
[1770223307924,80.37816764,91.182,91.091,199.0]
[1770223308313,80.37816764,91.178,91.111,9.8929]
[1770223308714,80.37816764,91.169,91.055,199.02]
[1770223308922,80.37816764,91.129,91.007,10.10260895]
[1770223309119,80.37816764,91.129,91.007,154.0661]
[1770223309427,80.37816764,91.129,91.089,9.8953]
[1770223309622,80.37816764,91.129,91.032,154.0236]
[1770223309623,6.87886677,91.17,91.046,153.9997]
[1770223309828,6.87886677,91.17,91.053,153.9882]
[1770223310023,9.887,91.166,91.102,9.8939]
[1770223310224,6.87886677,91.17,91.059,19.7972]
[1770223310426,6.87886677,91.15,91.027,154.0323]
[1770223310625,6.87886677,91.15,91.08,9.8962]
[1770223310825,6.87886677,91.15,91.033,154.0224]
[1770223311127,6.87886677,91.15,91.039,154.0112]
[1770223311725,64.46835144,91.149,91.042,19.8009]
[1770223312326,64.46835144,91.149,91.043,199.46]
[1770223312529,64.46835144,91.149,91.043,209.56260895]
[1770223312731,64.46835144,91.149,91.081,9.8962]
[1770223313233,64.46835144,91.149,91.072,9.8971]
[1770223313729,64.46835144,91.149,91.054,10.10260895]
[1770223313926,64.46835144,91.149,91.059,10.10260895]
[1770223314127,64.46835144,91.149,91.066,10.10260895]
[1770223314329,64.46835144,91.149,91.088,9.8954]
[1770223314524,63.35266706,91.189,91.093,0.97967721]
[1770223314832,63.35266706,91.189,91.103,0.97967721]
[1770223315033,63.35266706,91.189,91.111,0.97967721]
[1770223315233,63.35266706,91.189,91.113,0.97967721]
[1770223315434,63.35266706,91.189,91.113,11.08228616]
[1770223315626,63.35266706,91.189,91.113,0.97967721]
[1770223316330,63.35266706,91.189,91.132,9.8906]
[1770223316531,63.35266706,91.189,91.127,10.10260895]
[1770223316829,63.48722725,91.229,91.144,10.10260895]
[1770223317037,63.48722725,91.229,91.139,10.10260895]
[1770223317331,63.48722725,91.229,91.147,10.10260895]
[1770223317533,63.48722725,91.229,91.149,9.8888]
[1770223317732,63.48722725,91.229,91.138,10.10260895]
[1770223317932,63.48722725,91.229,91.147,10.10260895]
[1770223318133,63.48722725,91.229,91.138,4.23554279]
[1770223319335,64.98451433,91.227,91.123,13.47014527]
[1770223319634,64.98451433,91.227,91.114,6.54883018]
[1770223319635,64.98451433,91.209,91.114,6.54883018]
[1770223319830,64.98451433,91.196,91.115,9.8925]
[1770223320029,64.98451433,91.196,91.114,6.54883018]
[1770223320425,64.98451433,91.196,91.134,9.8904]
[1770223320635,64.98451433,91.196,91.114,6.54883018]
[1770223320833,64.98451433,91.196,91.092,198.68]
[1770223320834,64.98451433,91.189,91.092,198.68]
[1770223321030,64.98451433,91.189,91.091,22.37608766]
[1770223321031,9.8854,91.181,91.102,9.8939]
[1770223321235,64.98451433,91.18,91.102,9.8939]
[1770223321634,64.98451433,91.178,91.111,9.8929]
[1770223322138,64.98451433,91.178,91.091,8.90594239]
[1770223322333,64.98451433,91.224,91.104,10.09376829]
[1770223322540,64.98451433,91.224,91.109,10.09376829]
[1770223322932,6.87886677,91.23,91.111,11.0887851]
[1770223322933,64.98451433,91.222,91.111,11.0887851]
[1770223323133,64.98451433,91.249,91.128,11.0887851]
[1770223323337,64.98451433,91.249,91.16,11.0887851]
[1770223323734,64.98451433,91.249,91.112,198.6]
[1770223323735,64.98451433,91.249,91.136,12.10132961]
[1770223323930,64.98451433,91.228,91.15,9.8887]
[1770223324635,66.83905579,91.217,91.139,9.8898]
[1770223324826,66.83905579,91.217,91.136,12.10132961]
[1770223325026,66.83905579,91.217,91.109,6.79398611]
[1770223325234,73.71792256,91.2,91.109,6.79398611]
[1770223325533,73.71792256,91.2,91.034,26.89685846]
[1770223325534,69.86122694,91.159,91.062,6.79398611]
[1770223325735,69.86122694,91.155,91.083,9.896]
[1770223326031,69.86122694,91.155,91.062,6.79398611]
[1770223327227,69.86122694,91.144,91.067,9.8977]
[1770223327829,69.86122694,91.144,91.053,6.96734147]
[1770223327830,69.86122694,91.144,91.08,9.8962]
[1770223328235,69.86122694,91.144,91.054,198.66]
[1770223328236,69.86122694,91.144,91.055,7.86088168]
[1770223328438,69.86122694,91.144,91.081,9.8961]
[1770223328640,69.86122694,91.144,91.055,7.86088168]
[1770223329136,69.86122694,91.144,91.04,6.87886677]
[1770223329137,69.86122694,91.144,91.057,8.76440664]
[1770223329338,9.89109376,91.208,91.041,154.0088]
[1770223329339,69.86122694,91.179,91.062,8.76440664]
[1770223329536,69.86122694,91.179,91.093,8.76440664]
[1770223329733,69.86122694,91.179,91.059,153.9775]
[1770223329734,69.86122694,91.179,91.095,9.63891472]
[1770223330441,9.8824,91.209,91.095,9.63891472]
[1770223330442,69.86122694,91.219,91.095,9.63891472]
[1770223330643,69.86122694,91.219,91.157,9.8879]
[1770223330940,69.86122694,91.219,91.136,11.48921377]
[1770223331836,69.86122694,91.219,91.165,9.887]
[1770223332542,69.86122694,91.219,91.152,9.8884]
[1770223332941,69.86122694,91.219,91.136,11.48921377]
[1770223333143,69.86122694,91.219,91.162,9.8873]
[1770223333442,69.86122694,91.219,91.136,11.48921377]
[1770223334940,69.86122694,91.217,91.085,13.61154436]
[1770223335139,6.87886677,91.26,91.094,25.28393756]
[1770223335140,69.86122694,91.189,91.094,25.28393756]
[1770223335541,69.86122694,91.189,91.133,9.8905]
[1770223335742,69.86122694,91.189,91.094,25.28393756]
[1770223335939,69.86122694,91.171,91.093,9.8948]
[1770223336240,69.86122694,91.171,91.062,153.9724]
[1770223336436,69.86122694,91.171,91.072,13.61154436]
[1770223336633,69.86122694,91.171,91.069,26.12904692]
[1770223336634,69.86122694,91.171,91.093,26.28336462]
[1770223337037,69.86122694,91.171,91.125,9.8914]
[1770223337233,35.83692694,91.171,91.093,26.28336462]
[1770223337439,20.06962647,91.26,91.08,153.9427]
[1770223337440,6.87886677,91.23,91.101,60.30766462]
[1770223337639,9.8804,91.227,91.155,9.8881]
[1770223337844,6.87886677,91.23,91.125,61.20188761]
[1770223338041,6.87886677,91.18,91.116,9.8923]
[1770223338345,6.87886677,91.21,91.082,61.20188761]
[1770223339239,69.86122694,91.186,91.082,61.20188761]
[1770223339940,69.86122694,91.186,91.126,9.8912]
[1770223341142,69.86122694,91.186,91.082,61.20188761]
[1770223341143,69.86122694,91.186,91.138,9.89]
[1770223341343,69.86122694,91.186,91.104,64.60356378]
[1770223341546,69.86122694,91.211,91.143,9.8894]
[1770223341943,69.86122694,91.211,91.115,65.44802069]
[1770223342140,69.86122694,91.211,91.092,264.66802069]
[1770223342346,69.86122694,91.186,91.092,264.66802069]
[1770223343348,69.86122694,91.186,91.109,9.8931]
[1770223344048,9.8863,91.173,91.093,66.40257932]
[1770223344250,74.18886615,91.172,91.093,66.40257932]
[1770223345449,74.18886615,91.17,91.093,66.40257932]
[1770223346248,74.18886615,91.17,91.082,199.36]
[1770223346249,74.18886615,91.17,91.096,69.74422644]
[1770223346746,6.87886677,91.21,91.096,69.74422644]
[1770223346747,74.18886615,91.193,91.096,69.74422644]
[1770223347352,74.18886615,91.191,91.11,9.893]
[1770223347653,74.18886615,91.191,91.11,69.32725474]
[1770223348349,74.18886615,91.191,91.086,69.32725474]
[1770223348648,74.18886615,91.189,91.086,69.32725474]
[1770223348848,74.18886615,91.189,91.106,9.8934]
[1770223349257,74.18886615,91.189,91.086,69.32725474]
[1770223349658,9.8856,91.179,91.096,9.8945]
[1770223349961,74.18886615,91.178,91.096,9.8945]
[1770223350761,9.8859,91.176,91.096,9.8945]
[1770223350959,74.18886615,91.175,91.086,69.32725474]
[1770223351362,74.18886615,91.222,91.129,9.8909]
[1770223351560,74.18886615,91.222,91.13,69.68023759]
[1770223351755,74.18886615,91.219,91.13,69.68023759]
[1770223352060,74.18886615,91.217,91.13,69.68023759]
[1770223352261,74.18886615,91.202,91.125,130.22]
[1770223352857,74.18886615,91.202,91.127,9.8911]
[1770223353655,74.18886615,91.202,91.104,69.68023759]
[1770223354761,74.18886615,91.202,91.133,9.8905]
[1770223355561,74.18886615,91.202,91.144,9.8893]
[1770223360166,74.18886615,91.221,91.129,67.72982088]
[1770223360365,38.51676615,91.221,91.133,77.98973436]
[1770223360560,6.87886677,91.26,91.16,77.98973436]
[1770223361165,6.87886677,91.26,91.196,9.8837]
[1770223361362,6.87886677,91.26,91.16,77.98973436]
[1770223361558,8.00663469,91.259,91.16,77.98973436]
[1770223361758,8.00663469,91.258,91.203,9.8829]
[1770223362066,9.8763,91.265,91.203,9.8829]
[1770223362257,9.8763,91.265,91.16,77.98973436]
[1770223362258,7.99957111,91.264,91.212,9.8819]
[1770223362457,74.18886615,91.289,91.179,77.98973436]
[1770223362662,74.18886615,91.287,91.179,77.98973436]
[1770223362862,74.18886615,91.263,91.207,9.8825]
[1770223363466,74.18886615,91.263,91.215,9.8816]
[1770223364366,74.18886615,91.263,91.179,77.98973436]
[1770223365268,74.18886615,91.258,91.197,9.8836]
[1770223365664,6.87150268,91.27,91.179,77.98973436]
[1770223365665,74.18886615,91.25,91.179,77.98973436]
[1770223365864,74.18886615,91.271,91.179,77.98973436]
[1770223366066,74.18886615,91.269,91.179,77.98973436]
[1770223366268,153.5364,91.322,91.179,77.98973436]
[1770223366269,74.18886615,91.267,91.179,77.98973436]
[1770223366464,6.87150268,91.25,91.131,77.98973436]
[1770223366666,74.18886615,91.229,91.133,77.98973436]
[1770223367168,74.18886615,91.223,91.142,9.8895]
[1770223368065,74.18886615,91.223,91.152,9.8884]
[1770223368562,74.18886615,91.221,91.142,9.8895]
[1770223368764,74.18886615,91.221,91.133,77.98973436]
[1770223369168,84.07086615,91.212,91.141,9.8896]
[1770223369369,74.18886615,91.212,91.141,9.8896]
[1770223370571,84.07106615,91.21,91.141,9.8896]
[1770223371271,74.18886615,91.199,91.133,77.98973436]
[1770223371471,74.18886615,91.199,91.131,9.8907]
[1770223371667,74.18886615,91.199,91.122,9.8917]
[1770223371868,9.8836,91.198,91.123,77.98973436]
[1770223372070,74.18886615,91.197,91.123,77.98973436]
[1770223372269,74.18886615,91.197,91.126,9.8913]
[1770223372470,9.8849,91.185,91.123,77.98973436]
[1770223373066,74.18886615,91.194,91.123,77.98973436]
[1770223373366,74.18886615,91.219,91.123,77.98973436]
[1770223373765,9.8817,91.215,91.143,9.8894]
[1770223373972,73.28301062,91.214,91.143,9.8894]
[1770223374373,9.88,91.231,91.161,82.95435723]
[1770223374573,73.28301062,91.236,91.161,73.06695723]
[1770223374969,73.28301062,91.233,91.172,9.8863]
[1770223375867,73.28301062,91.233,91.163,9.8873]
[1770223376068,73.28301062,91.233,91.142,73.06695723]
[1770223376269,73.28301062,91.223,91.142,73.06695723]
[1770223376475,73.28301062,91.223,91.142,82.95645723]
[1770223376875,73.28301062,91.223,91.154,9.8882]
[1770223378475,74.33919372,91.221,91.145,9.8891]
[1770223378769,74.33919372,91.221,91.142,73.06695723]
[1770223378968,74.33919372,91.221,91.159,9.8876]
[1770223380176,74.33919372,91.241,91.167,76.0294575]
[1770223381374,74.33919372,91.241,91.183,9.885]
[1770223381573,74.33919372,91.241,91.167,76.0294575]
[1770223381971,74.33919372,91.263,91.167,76.0294575]
[1770223382582,74.33919372,91.289,91.204,76.0294575]
[1770223382876,74.33919372,91.309,91.206,76.0294575]
[1770223383083,82.1725286,91.329,91.215,76.0294575]
[1770223383382,82.17384023,91.349,91.228,76.0294575]
[1770223383573,74.33919372,91.346,91.224,76.0294575]
[1770223383774,9.87187802,91.372,91.224,76.0294575]
[1770223383775,74.33919372,91.339,91.224,76.0294575]
[1770223383977,74.33919372,91.322,91.241,9.8788]
[1770223384172,74.33919372,91.32,91.224,76.0294575]
[1770223384375,74.33919372,91.318,91.224,76.0294575]
[1770223384574,74.33919372,91.318,91.229,85.9095575]
[1770223384778,74.33919372,91.318,91.229,76.0294575]
[1770223385580,74.33919372,91.316,91.229,76.0294575]
[1770223385882,74.33919372,91.314,91.229,76.0294575]
[1770223386083,74.33919372,91.314,91.234,76.0294575]
[1770223386479,163.81187802,91.365,91.234,76.0294575]
[1770223386480,74.33919372,91.343,91.234,76.0294575]
[1770223386880,74.33919372,91.343,91.22,6.87150268]
[1770223386881,74.33919372,91.343,91.259,76.0294575]
[1770223387685,74.33919372,91.331,91.259,76.0294575]
[1770223388484,74.33919372,91.331,91.26,9.8768]
[1770223389883,74.33919372,91.331,91.259,76.0294575]
[1770223390080,74.33919372,91.373,91.259,76.0294575]
[1770223390292,74.33919372,91.373,91.261,76.0294575]
[1770223390884,74.33919372,91.373,91.292,9.8733]
[1770223391084,74.33919372,91.373,91.267,76.0294575]
[1770223391281,74.33919372,91.371,91.267,76.0294575]
[1770223391480,74.33919372,91.367,91.278,9.8748]
[1770223391992,74.33919372,91.342,91.267,76.0294575]
[1770223392484,74.33919372,91.342,91.248,200.84]
[1770223392691,74.33919372,91.34,91.264,9.8763]
[1770223393078,74.33919372,91.34,91.249,76.0294575]
[1770223393283,74.33919372,91.334,91.249,76.0294575]
[1770223393484,74.33919372,91.334,91.218,76.0294575]
[1770223393683,74.33919372,91.332,91.218,76.0294575]
[1770223394188,118.0,91.333,91.247,76.0294575]
[1770223394380,74.33919372,91.352,91.247,76.0294575]
[1770223394783,74.33919372,91.374,91.296,85.9023575]
[1770223396288,74.33919372,91.374,91.306,9.8717]
[1770223396493,74.33919372,91.374,91.306,85.9011575]
[1770223396686,74.33919372,91.374,91.306,76.0294575]
[1770223397391,74.33919372,91.372,91.286,76.0294575]
[1770223397896,74.33919372,91.372,91.287,9.8738]
[1770223398186,74.33919372,91.372,91.231,32.96]
[1770223398187,74.33919372,91.372,91.26,76.0294575]
[1770223398494,84.20529372,91.359,91.277,76.0294575]
[1770223399091,84.20529372,91.359,91.284,76.0294575]
[1770223399789,74.33919372,91.349,91.284,76.0294575]
[1770223400596,74.33919372,91.389,91.284,76.0294575]
[1770223400995,74.33919372,91.375,91.303,9.872]
[1770223401196,74.33919372,91.395,91.284,76.0294575]
[1770223401493,74.33919372,91.395,91.28,6.87150268]
[1770223401494,9.8631,91.387,91.323,9.8699]
[1770223401794,74.33919372,91.395,91.323,76.0294575]
[1770223402695,74.33919372,91.395,91.331,9.8691]
[1770223403098,74.33919372,91.416,91.332,76.0294575]
[1770223403391,9.8606,91.41,91.332,76.0294575]
[1770223404194,87.8033817,91.41,91.332,76.0294575]
[1770223404694,77.9427817,91.452,91.35,72.79265033]
[1770223405197,77.9427817,91.427,91.351,72.79265033]
[1770223405396,77.9427817,91.419,91.331,72.79265033]
[1770223405592,77.9427817,91.419,91.31,72.79265033]
[1770223405899,77.9427817,91.409,91.313,9.871]
[1770223406197,77.9427817,91.409,91.31,72.79265033]
[1770223406393,77.9427817,91.404,91.31,72.79265033]
[1770223407300,77.9427817,91.404,91.325,82.66235033]
[1770223407701,77.9427817,91.404,91.325,72.79265033]
[1770223408700,77.9427817,91.402,91.325,72.79265033]
[1770223409003,77.9427817,91.423,91.325,72.79265033]
[1770223409596,77.9427817,91.423,91.337,72.79265033]
[1770223410198,87.7996817,91.444,91.354,72.79265033]
[1770223410701,87.7996817,91.444,91.358,72.79265033]
[1770223411099,77.9427817,91.444,91.358,72.79265033]
[1770223411301,6.87150268,91.49,91.36,72.79265033]
[1770223411500,77.9427817,91.489,91.362,72.79265033]
[1770223412699,0.06934613,91.435,91.382,9.8636]
[1770223412905,0.06934613,91.435,91.383,72.79265033]
[1770223413100,0.06934613,91.435,91.361,237.49265033]
[1770223413298,0.06934613,91.435,91.362,72.79265033]
[1770223413500,77.9427817,91.445,91.362,72.79265033]
[1770223414602,87.8009817,91.433,91.362,72.79265033]
[1770223414900,77.9427817,91.433,91.342,72.79265033]
[1770223415101,77.9427817,91.433,91.353,82.65925033]
[1770223415703,77.9427817,91.428,91.353,72.79265033]
[1770223416700,9.8596,91.419,91.353,72.79265033]
[1770223417300,87.8023817,91.419,91.353,72.79265033]
[1770223419706,9.8606,91.41,91.353,72.79265033]
[1770223419910,77.9427817,91.419,91.353,72.79265033]
[1770223420217,77.9427817,91.419,91.333,72.79265033]
[1770223420407,9.8616,91.401,91.338,9.8683]
[1770223420607,77.9427817,91.419,91.317,202.5]
[1770223420804,153.3485,91.434,91.261,72.79265033]
[1770223420805,77.9427817,91.399,91.261,72.79265033]
[1770223421004,77.9427817,91.397,91.263,72.79265033]
[1770223421809,77.9427817,91.352,91.263,72.79265033]
[1770223422112,77.9427817,91.352,91.264,72.79265033]